[Event "Late-Titled-Tuesday-Blitz-February-13-2024"]
[Site "Chess.com"]
[Date "2024.02.13"]
[Round "4"]
[White "alexrustemov"]
[Black "Galileo22"]
[Result "1/2-1/2"]
[WhiteElo "2821"]
[BlackElo "2573"]
[TimeControl "180+1"]
[EndTime "14:41:07 PST"]
[Termination "Game drawn by repetition"]

1. d4 {[%clk 0:03:00.9]} 1... d5 {[%clk 0:03:00.1]} 2. c4 {[%clk 0:03:01.3]}
2... c6 {[%clk 0:02:57.9]} 3. Nc3 {[%clk 0:03:01.6]} 3... Nf6 {[%clk 0:02:58]}
4. e3 {[%clk 0:03:02.1]} 4... a6 {[%clk 0:02:57.2]} 5. Qc2 {[%clk 0:03:01.5]}
5... b5 {[%clk 0:02:54.6]} 6. b3 {[%clk 0:03:00.7]} 6... e6 {[%clk 0:02:53.4]}
7. Bd3 {[%clk 0:03:00.2]} 7... Nbd7 {[%clk 0:02:45.2]} 8. Nf3 {[%clk 0:02:59.7]}
8... Bb7 {[%clk 0:02:39.2]} 9. O-O {[%clk 0:02:53.6]} 9... Qc7 {[%clk
0:02:16.9]} 10. c5 {[%clk 0:02:44.1]} 10... Be7 {[%clk 0:02:03.9]} 11. Bb2
{[%clk 0:02:31.1]} 11... a5 {[%clk 0:01:50.2]} 12. a3 {[%clk 0:02:30]} 12... O-O
{[%clk 0:01:40.3]} 13. h3 {[%clk 0:02:28.9]} 13... Rfe8 {[%clk 0:01:34.3]} 14.
Ne2 {[%clk 0:02:27.7]} 14... Bf8 {[%clk 0:01:29.1]} 15. b4 {[%clk 0:02:24.2]}
15... g6 {[%clk 0:01:15.5]} 16. Bc3 {[%clk 0:02:19.7]} 16... axb4 {[%clk
0:01:07.1]} 17. axb4 {[%clk 0:02:19.5]} 17... Bg7 {[%clk 0:01:07.8]} 18. Ne5
{[%clk 0:02:15.5]} 18... Nf8 {[%clk 0:01:00.6]} 19. f4 {[%clk 0:02:13.1]} 19...
N6d7 {[%clk 0:00:57.5]} 20. e4 {[%clk 0:02:03.5]} 20... dxe4 {[%clk 0:00:55.3]}
21. Bxe4 {[%clk 0:02:02.8]} 21... Nf6 {[%clk 0:00:53.5]} 22. Bf3 {[%clk
0:02:01.5]} 22... Nd5 {[%clk 0:00:53.2]} 23. Bd2 {[%clk 0:01:51.9]} 23... Red8
{[%clk 0:00:44.8]} 24. g3 {[%clk 0:01:35.2]} 24... Ne7 {[%clk 0:00:40]} 25. g4
{[%clk 0:01:26.8]} 25... Nd7 {[%clk 0:00:37.3]} 26. Kg2 {[%clk 0:01:23.1]} 26...
Nf6 {[%clk 0:00:35.2]} 27. Qb3 {[%clk 0:01:06.6]} 27... Nfd5 {[%clk 0:00:34.6]}
28. Rfd1 {[%clk 0:00:58.2]} 28... Rdb8 {[%clk 0:00:28.7]} 29. Nd3 {[%clk
0:00:55.4]} 29... Bc8 {[%clk 0:00:27.6]} 30. Ra2 {[%clk 0:00:52.2]} 30... Qb7
{[%clk 0:00:23.9]} 31. Rda1 {[%clk 0:00:51.6]} 31... Nc7 {[%clk 0:00:20]} 32.
Ne5 {[%clk 0:00:47.4]} 32... Ned5 {[%clk 0:00:19.1]} 33. Ng3 {[%clk 0:00:42.1]}
33... Rxa2 {[%clk 0:00:13.9]} 34. Qxa2 {[%clk 0:00:41.9]} 34... Ra8 {[%clk
0:00:14.6]} 35. Qb2 {[%clk 0:00:40.2]} 35... Rxa1 {[%clk 0:00:13.9]} 36. Qxa1
{[%clk 0:00:41.1]} 36... Na6 {[%clk 0:00:12.7]} 37. Qb2 {[%clk 0:00:40]} 37...
f6 {[%clk 0:00:10.3]} 38. Nd3 {[%clk 0:00:38.4]} 38... f5 {[%clk 0:00:07.9]} 39.
Ne5 {[%clk 0:00:36]} 39... Nb8 {[%clk 0:00:06.7]} 40. g5 {[%clk 0:00:34.6]}
40... Qa6 {[%clk 0:00:04.8]} 41. h4 {[%clk 0:00:34]} 41... Qa4 {[%clk
0:00:03.9]} 42. h5 {[%clk 0:00:33.1]} 42... Ne7 {[%clk 0:00:03.5]} 43. Kf2
{[%clk 0:00:31.3]} 43... Qa6 {[%clk 0:00:03.5]} 44. Ke2 {[%clk 0:00:30.6]} 44...
Nd7 {[%clk 0:00:03.9]} 45. Nd3 {[%clk 0:00:27.8]} 45... Nd5 {[%clk 0:00:03.9]}
46. Bc1 {[%clk 0:00:23.4]} 46... Qb7 {[%clk 0:00:04]} 47. Qa3 {[%clk 0:00:22.8]}
47... Bf8 {[%clk 0:00:04.2]} 48. Bd2 {[%clk 0:00:22.6]} 48... Qa6 {[%clk
0:00:04.2]} 49. Qxa6 {[%clk 0:00:20.2]} 49... Bxa6 {[%clk 0:00:05.1]} 50. Kd1
{[%clk 0:00:16.8]} 50... Kf7 {[%clk 0:00:05.4]} 51. Ne2 {[%clk 0:00:16.8]} 51...
Bc8 {[%clk 0:00:05.4]} 52. Nec1 {[%clk 0:00:16.8]} 52... Bg7 {[%clk 0:00:03.6]}
53. Nb3 {[%clk 0:00:17]} 53... Nb8 {[%clk 0:00:03.4]} 54. Ke2 {[%clk 0:00:17.2]}
54... Bd7 {[%clk 0:00:03.6]} 55. h6 {[%clk 0:00:17.4]} 55... Bh8 {[%clk
0:00:03.5]} 56. Be3 {[%clk 0:00:14.3]} 56... Be8 {[%clk 0:00:03.4]} 57. Kd2
{[%clk 0:00:14.6]} 57... Ke7 {[%clk 0:00:03.4]} 58. Na5 {[%clk 0:00:14.9]} 58...
Kd8 {[%clk 0:00:03.2]} 59. Nb7+ {[%clk 0:00:15.1]} 59... Ke7 {[%clk 0:00:03.2]}
60. Nd6 {[%clk 0:00:15.6]} 60... Bd7 {[%clk 0:00:02.3]} 61. Ne5 {[%clk
0:00:15.7]} 61... Na6 {[%clk 0:00:02.1]} 62. Bxd5 {[%clk 0:00:14.8]} 62... exd5
{[%clk 0:00:02.2]} 63. Nd3 {[%clk 0:00:14.9]} 63... Nc7 {[%clk 0:00:01.9]} 64.
Kc3 {[%clk 0:00:14.9]} 64... Be6 {[%clk 0:00:02.4]} 65. Kb3 {[%clk 0:00:14.7]}
65... Ne8 {[%clk 0:00:02.9]} 66. Nb7 {[%clk 0:00:14.2]} 66... Kd7 {[%clk
0:00:03]} 67. Na5 {[%clk 0:00:14.4]} 67... Kc7 {[%clk 0:00:03.5]} 68. Ne5 {[%clk
0:00:14.7]} 68... Bxe5 {[%clk 0:00:03.6]} 69. dxe5 {[%clk 0:00:14.5]} 69... Kd7
{[%clk 0:00:03.5]} 70. Kc3 {[%clk 0:00:14.9]} 70... Nc7 {[%clk 0:00:04]} 71. Nb3
{[%clk 0:00:14.5]} 71... Bf7 {[%clk 0:00:04.2]} 72. Nd4 {[%clk 0:00:14.9]} 72...
Ne6 {[%clk 0:00:04.7]} 73. Nf3 {[%clk 0:00:15.2]} 73... Ke7 {[%clk 0:00:05.1]}
74. Kd3 {[%clk 0:00:15.3]} 74... Be8 {[%clk 0:00:05.6]} 75. Kd2 {[%clk
0:00:15.1]} 75... Bd7 {[%clk 0:00:06.1]} 76. Ke2 {[%clk 0:00:14.8]} 76... Be8
{[%clk 0:00:06.7]} 77. Kf2 {[%clk 0:00:15.2]} 77... Bd7 {[%clk 0:00:07.3]} 78.
Ne1 {[%clk 0:00:15.6]} 78... Be8 {[%clk 0:00:08]} 79. Nd3 {[%clk 0:00:16.1]}
79... Bd7 {[%clk 0:00:08.6]} 80. Nc1 {[%clk 0:00:16.6]} 80... Be8 {[%clk
0:00:09.3]} 81. Ke2 {[%clk 0:00:16.6]} 81... Bd7 {[%clk 0:00:09.8]} 82. Kd3
{[%clk 0:00:17.1]} 82... Be8 {[%clk 0:00:10.5]} 83. Nb3 {[%clk 0:00:17.7]} 83...
Bd7 {[%clk 0:00:11.2]} 84. Na5 {[%clk 0:00:18.4]} 84... Be8 {[%clk 0:00:11.6]}
85. Nb7 {[%clk 0:00:18.7]} 85... Bd7 {[%clk 0:00:11.4]} 86. Nd6 {[%clk
0:00:19.3]} 86... Be8 {[%clk 0:00:11.8]} 87. Bd2 {[%clk 0:00:19.8]} 87... Bd7
{[%clk 0:00:12.1]} 88. Nb7 {[%clk 0:00:18.5]} 88... Be8 {[%clk 0:00:12.2]} 89.
Na5 {[%clk 0:00:17.1]} 89... Bd7 {[%clk 0:00:12.5]} 90. Be3 {[%clk 0:00:17.8]}
90... Ke8 {[%clk 0:00:12.3]} 91. Nb7 {[%clk 0:00:16.6]} 91... Ke7 {[%clk
0:00:12.6]} 92. Nd6 {[%clk 0:00:17]} 92... Kf8 {[%clk 0:00:12.9]} 93. Ke2 {[%clk
0:00:17.3]} 93... Ke7 {[%clk 0:00:13.3]} 94. Bd2 {[%clk 0:00:17.2]} 94... Kf8
{[%clk 0:00:13.7]} 95. Kd3 {[%clk 0:00:17.5]} 95... Ke7 {[%clk 0:00:14.3]} 96.
Bc1 {[%clk 0:00:15.2]} 96... Kf8 {[%clk 0:00:14.8]} 97. Ke3 {[%clk 0:00:12.3]}
97... Ke7 {[%clk 0:00:15.2]} 98. Bb2 {[%clk 0:00:12.8]} 98... Kf8 {[%clk
0:00:15.8]} 99. Bd4 {[%clk 0:00:13.6]} 99... Ke7 {[%clk 0:00:16.2]} 100. Nxf5+
{[%clk 0:00:09.5]} 100... gxf5 {[%clk 0:00:14.8]} 101. g6 {[%clk 0:00:10.3]}
101... Nf8 {[%clk 0:00:11.5]} 102. g7 {[%clk 0:00:10.2]} 102... Be6 {[%clk
0:00:08.8]} 103. gxf8=Q+ {[%clk 0:00:09.7]} 103... Kxf8 {[%clk 0:00:09.7]} 104.
Kf3 {[%clk 0:00:10.2]} 104... Kf7 {[%clk 0:00:10]} 105. Kg3 {[%clk 0:00:10.6]}
105... Kg6 {[%clk 0:00:10.6]} 106. Kh4 {[%clk 0:00:11.1]} 106... Kxh6 {[%clk
0:00:11]} 107. Be3 {[%clk 0:00:11.7]} 107... Kg6 {[%clk 0:00:11.2]} 108. Bd4
{[%clk 0:00:12.2]} 108... Kh6 {[%clk 0:00:11.7]} 109. Be3 {[%clk 0:00:12.7]}
109... Kg6 {[%clk 0:00:12.5]} 110. Bd4 {[%clk 0:00:13]} 110... Kh6 {[%clk
0:00:13.2]} 1/2-1/2

[Event "Late-Titled-Tuesday-Blitz-February-13-2024"]
[Site "Chess.com"]
[Date "2024.02.13"]
[Round "4"]
[White "DonJuan_34"]
[Black "traviscottofficial"]
[Result "1-0"]
[WhiteElo "2496"]
[BlackElo "2684"]
[TimeControl "180+1"]
[EndTime "14:42:28 PST"]
[Termination "DonJuan_34 won by checkmate"]

1. d4 {[%clk 0:03:00.9]} 1... Nf6 {[%clk 0:02:58.9]} 2. c4 {[%clk 0:03:01.3]}
2... e6 {[%clk 0:02:59]} 3. Nc3 {[%clk 0:03:01.5]} 3... d5 {[%clk 0:02:59]} 4.
cxd5 {[%clk 0:03:00.2]} 4... exd5 {[%clk 0:02:58.9]} 5. Bg5 {[%clk 0:03:00.5]}
5... c6 {[%clk 0:02:59]} 6. e3 {[%clk 0:02:59.7]} 6... Be7 {[%clk 0:02:59.1]} 7.
Qc2 {[%clk 0:02:59.6]} 7... h6 {[%clk 0:02:56.8]} 8. Bh4 {[%clk 0:02:58.4]} 8...
Nbd7 {[%clk 0:02:52.4]} 9. Bd3 {[%clk 0:02:58.2]} 9... Nb6 {[%clk 0:02:50.7]}
10. Nge2 {[%clk 0:02:56.3]} 10... O-O {[%clk 0:02:50.3]} 11. O-O {[%clk
0:02:54.7]} 11... Re8 {[%clk 0:02:49.3]} 12. f3 {[%clk 0:02:46.5]} 12... Nfd7
{[%clk 0:02:39.7]} 13. Bf2 {[%clk 0:02:44.5]} 13... Bf8 {[%clk 0:02:38.6]} 14.
Rad1 {[%clk 0:02:40.6]} 14... c5 {[%clk 0:02:23.4]} 15. dxc5 {[%clk 0:02:33.3]}
15... Nxc5 {[%clk 0:02:23.2]} 16. Nd4 {[%clk 0:02:29.2]} 16... Nxd3 {[%clk
0:02:22.3]} 17. Qxd3 {[%clk 0:02:25.3]} 17... Qc7 {[%clk 0:02:16.7]} 18. Ndb5
{[%clk 0:02:17]} 18... Qe7 {[%clk 0:02:03.4]} 19. b3 {[%clk 0:01:51.1]} 19...
Be6 {[%clk 0:01:52]} 20. Nd4 {[%clk 0:01:46]} 20... Bd7 {[%clk 0:01:51.1]} 21.
a4 {[%clk 0:01:43.1]} 21... Qb4 {[%clk 0:01:41.6]} 22. Nce2 {[%clk 0:01:31.6]}
22... Rad8 {[%clk 0:01:33.7]} 23. Be1 {[%clk 0:01:26.7]} 23... Qe7 {[%clk
0:01:32.7]} 24. Bf2 {[%clk 0:01:17.9]} 24... Na8 {[%clk 0:01:25.1]} 25. Nc3
{[%clk 0:01:09]} 25... Nc7 {[%clk 0:01:20.1]} 26. Rfe1 {[%clk 0:01:01.6]} 26...
Bc8 {[%clk 0:01:16.2]} 27. Ncb5 {[%clk 0:00:56.3]} 27... Nxb5 {[%clk 0:01:09.7]}
28. Nxb5 {[%clk 0:00:49.2]} 28... a6 {[%clk 0:01:06.9]} 29. Nd4 {[%clk 0:00:49]}
29... Qf6 {[%clk 0:01:04.5]} 30. Rc1 {[%clk 0:00:35]} 30... Qb6 {[%clk
0:01:03.1]} 31. Qc2 {[%clk 0:00:30.1]} 31... Ba3 {[%clk 0:00:55.5]} 32. Qc7
{[%clk 0:00:21.9]} 32... Qg6 {[%clk 0:00:52.2]} 33. Rc2 {[%clk 0:00:18.4]} 33...
Bb4 {[%clk 0:00:44]} 34. Rec1 {[%clk 0:00:16.1]} 34... Bh3 {[%clk 0:00:24.4]}
35. Qg3 {[%clk 0:00:16.3]} 35... Qxg3 {[%clk 0:00:23.2]} 36. hxg3 {[%clk
0:00:17.2]} 36... Bd7 {[%clk 0:00:21.8]} 37. Rc7 {[%clk 0:00:16.2]} 37... Bc8
{[%clk 0:00:22.1]} 38. R7c2 {[%clk 0:00:15.7]} 38... Ba3 {[%clk 0:00:22]} 39.
Rd1 {[%clk 0:00:14.9]} 39... Kf8 {[%clk 0:00:21.7]} 40. Rcd2 {[%clk 0:00:15]}
40... Bb4 {[%clk 0:00:21.8]} 41. Rd3 {[%clk 0:00:15.6]} 41... Bd7 {[%clk
0:00:21.2]} 42. Be1 {[%clk 0:00:16.2]} 42... Be7 {[%clk 0:00:20.9]} 43. Bc3
{[%clk 0:00:15.8]} 43... Rc8 {[%clk 0:00:20.7]} 44. Kf2 {[%clk 0:00:16]} 44...
Rc7 {[%clk 0:00:19.9]} 45. Bb2 {[%clk 0:00:16.4]} 45... Rec8 {[%clk 0:00:20]}
46. R3d2 {[%clk 0:00:16.5]} 46... Bb4 {[%clk 0:00:18.9]} 47. Re2 {[%clk
0:00:16.4]} 47... Ke8 {[%clk 0:00:18.8]} 48. e4 {[%clk 0:00:16.1]} 48... dxe4
{[%clk 0:00:18.2]} 49. Rxe4+ {[%clk 0:00:16.2]} 49... Kf8 {[%clk 0:00:18.2]} 50.
Re2 {[%clk 0:00:16.7]} 50... Bc3 {[%clk 0:00:17.6]} 51. Bxc3 {[%clk 0:00:16.5]}
51... Rxc3 {[%clk 0:00:18.5]} 52. Red2 {[%clk 0:00:16.6]} 52... g6 {[%clk
0:00:17.4]} 53. Ne2 {[%clk 0:00:15.4]} 53... Rxb3 {[%clk 0:00:16.2]} 54. Rxd7
{[%clk 0:00:15.7]} 54... Rc4 {[%clk 0:00:15.1]} 55. R7d4 {[%clk 0:00:14.9]}
55... Rc2 {[%clk 0:00:15.4]} 56. R1d2 {[%clk 0:00:15.2]} 56... Rc7 {[%clk
0:00:15.3]} 57. Rd7 {[%clk 0:00:14.7]} 57... Rc4 {[%clk 0:00:15]} 58. Rd8+
{[%clk 0:00:14.3]} 58... Kg7 {[%clk 0:00:15]} 59. R8d4 {[%clk 0:00:15]} 59...
Rc7 {[%clk 0:00:13]} 60. R4d3 {[%clk 0:00:15.3]} 60... Rb4 {[%clk 0:00:12.8]}
61. Rd4 {[%clk 0:00:14.7]} 61... Rcc4 {[%clk 0:00:10]} 62. Rxc4 {[%clk
0:00:14.9]} 62... Rxc4 {[%clk 0:00:10.9]} 63. Rb2 {[%clk 0:00:15.3]} 63... Rxa4
{[%clk 0:00:08.6]} 64. Rxb7 {[%clk 0:00:15.9]} 64... Ra2 {[%clk 0:00:09.4]} 65.
Ke3 {[%clk 0:00:15.9]} 65... Ra3+ {[%clk 0:00:09.7]} 66. Kd2 {[%clk 0:00:15.3]}
66... Ra2+ {[%clk 0:00:10.1]} 67. Kd3 {[%clk 0:00:15.2]} 67... a5 {[%clk
0:00:10.6]} 68. g4 {[%clk 0:00:14.5]} 68... a4 {[%clk 0:00:10]} 69. Ra7 {[%clk
0:00:14.9]} 69... Ra3+ {[%clk 0:00:09.7]} 70. Nc3 {[%clk 0:00:15.2]} 70... Rb3
{[%clk 0:00:08.3]} 71. Rxa4 {[%clk 0:00:14.8]} 71... Rb2 {[%clk 0:00:07.9]} 72.
Ra2 {[%clk 0:00:15.1]} 72... Rb8 {[%clk 0:00:07.4]} 73. Re2 {[%clk 0:00:15.7]}
73... Rd8+ {[%clk 0:00:08.2]} 74. Ke3 {[%clk 0:00:15.7]} 74... Rc8 {[%clk
0:00:08.8]} 75. Ne4 {[%clk 0:00:15.5]} 75... Re8 {[%clk 0:00:09.5]} 76. Kf2
{[%clk 0:00:15.8]} 76... Rd8 {[%clk 0:00:09.4]} 77. Ng3 {[%clk 0:00:16.1]} 77...
Rc8 {[%clk 0:00:09.6]} 78. Ne4 {[%clk 0:00:16.3]} 78... Rc4 {[%clk 0:00:09.8]}
79. g5 {[%clk 0:00:16.1]} 79... hxg5 {[%clk 0:00:08.9]} 80. Nxg5 {[%clk
0:00:16.7]} 80... Rc5 {[%clk 0:00:09.6]} 81. Ne4 {[%clk 0:00:16.8]} 81... Rb5
{[%clk 0:00:09.7]} 82. g4 {[%clk 0:00:17.1]} 82... Rb3 {[%clk 0:00:09.8]} 83.
Kg3 {[%clk 0:00:17.2]} 83... Rb4 {[%clk 0:00:10]} 84. g5 {[%clk 0:00:17.2]}
84... Rb5 {[%clk 0:00:10]} 85. f4 {[%clk 0:00:17.2]} 85... Rb4 {[%clk
0:00:09.8]} 86. Kg4 {[%clk 0:00:17.6]} 86... Rb1 {[%clk 0:00:07.9]} 87. Nf6
{[%clk 0:00:17.8]} 87... Rg1+ {[%clk 0:00:08.4]} 88. Kf3 {[%clk 0:00:18.1]}
88... Rf1+ {[%clk 0:00:08.9]} 89. Kg3 {[%clk 0:00:18.2]} 89... Rg1+ {[%clk
0:00:08]} 90. Kf2 {[%clk 0:00:18.2]} 90... Rh1 {[%clk 0:00:04.9]} 91. Kg2 {[%clk
0:00:16.1]} 91... Rh4 {[%clk 0:00:04.2]} 92. Kg3 {[%clk 0:00:15.7]} 92... Rh1
{[%clk 0:00:04.1]} 93. Rh2 {[%clk 0:00:15.8]} 93... Rg1+ {[%clk 0:00:03.8]} 94.
Kf2 {[%clk 0:00:15.6]} 94... Ra1 {[%clk 0:00:04.4]} 95. Rh7+ {[%clk 0:00:16.1]}
95... Kf8 {[%clk 0:00:05.1]} 96. Rh8+ {[%clk 0:00:16.4]} 96... Ke7 {[%clk
0:00:05.8]} 97. Kf3 {[%clk 0:00:15.2]} 97... Rf1+ {[%clk 0:00:04.8]} 98. Kg3
{[%clk 0:00:14.3]} 98... Rg1+ {[%clk 0:00:05.2]} 99. Kf3 {[%clk 0:00:14.3]}
99... Ra1 {[%clk 0:00:04.3]} 100. Re8+ {[%clk 0:00:13.4]} 100... Kd6 {[%clk
0:00:04]} 101. Re3 {[%clk 0:00:13.5]} 101... Rf1+ {[%clk 0:00:03.6]} 102. Ke4
{[%clk 0:00:13.4]} 102... Ra1 {[%clk 0:00:03.1]} 103. Rd3+ {[%clk 0:00:13.6]}
103... Ke6 {[%clk 0:00:03.5]} 104. Rb3 {[%clk 0:00:12.8]} 104... Ra4+ {[%clk
0:00:03.8]} 105. Kf3 {[%clk 0:00:13]} 105... Ra1 {[%clk 0:00:04.5]} 106. Rb6+
{[%clk 0:00:12.6]} 106... Kf5 {[%clk 0:00:05]} 107. Rb5+ {[%clk 0:00:12.9]}
107... Ke6 {[%clk 0:00:05.7]} 108. Ne4 {[%clk 0:00:12.7]} 108... Ra3+ {[%clk
0:00:05.5]} 109. Kg4 {[%clk 0:00:12.6]} 109... Ra1 {[%clk 0:00:06.1]} 110. Ng3
{[%clk 0:00:12.9]} 110... Ra3 {[%clk 0:00:06]} 111. f5+ {[%clk 0:00:12.1]}
111... gxf5+ {[%clk 0:00:06.5]} 112. Nxf5 {[%clk 0:00:12.2]} 112... Ra4+ {[%clk
0:00:07]} 113. Kf3 {[%clk 0:00:12]} 113... Ra3+ {[%clk 0:00:07.2]} 114. Ne3
{[%clk 0:00:12.2]} 114... Ra4 {[%clk 0:00:07.2]} 115. Rf5 {[%clk 0:00:11.4]}
115... Ra3 {[%clk 0:00:07.5]} 116. Rf6+ {[%clk 0:00:11.6]} 116... Ke7 {[%clk
0:00:07.5]} 117. Kf4 {[%clk 0:00:12.2]} 117... Ra4+ {[%clk 0:00:07.6]} 118. Ke5
{[%clk 0:00:11.5]} 118... Kf8 {[%clk 0:00:06.9]} 119. Nd5 {[%clk 0:00:11]}
119... Kg7 {[%clk 0:00:07.2]} 120. Rf3 {[%clk 0:00:10.3]} 120... Rg4 {[%clk
0:00:07.4]} 121. Rf5 {[%clk 0:00:09.8]} 121... Kg6 {[%clk 0:00:06.7]} 122. Nf4+
{[%clk 0:00:10.2]} 122... Kg7 {[%clk 0:00:07.2]} 123. Nh5+ {[%clk 0:00:10.1]}
123... Kg6 {[%clk 0:00:07.3]} 124. Nf4+ {[%clk 0:00:10.3]} 124... Kg7 {[%clk
0:00:08]} 125. Ke4 {[%clk 0:00:09.2]} 125... Rg1 {[%clk 0:00:05.7]} 126. Rb5
{[%clk 0:00:08.7]} 126... Re1+ {[%clk 0:00:04.7]} 127. Kf5 {[%clk 0:00:09]}
127... Rf1 {[%clk 0:00:04.3]} 128. Kg4 {[%clk 0:00:08.7]} 128... Rg1+ {[%clk
0:00:04.3]} 129. Kf5 {[%clk 0:00:09]} 129... Ra1 {[%clk 0:00:04.8]} 130. Nh5+
{[%clk 0:00:08.2]} 130... Kg8 {[%clk 0:00:04.9]} 131. Rb8+ {[%clk 0:00:08]}
131... Kh7 {[%clk 0:00:05.6]} 132. Nf6+ {[%clk 0:00:06.5]} 132... Kg7 {[%clk
0:00:04]} 133. Rg8# {[%clk 0:00:06.9]} 1-0

[Event "Late-Titled-Tuesday-Blitz-February-13-2024"]
[Site "Chess.com"]
[Date "2024.02.13"]
[Round "5"]
[White "reevecanada"]
[Black "IraZyne"]
[Result "1-0"]
[WhiteElo "2574"]
[BlackElo "2340"]
[TimeControl "180+1"]
[EndTime "14:52:07 PST"]
[Termination "reevecanada won by resignation"]

1. e4 {[%clk 0:03:00.9]} 1... Nf6 {[%clk 0:02:56.7]} 2. e5 {[%clk 0:03:00.2]}
2... Nd5 {[%clk 0:02:56.2]} 3. c4 {[%clk 0:03:00.6]} 3... Nb6 {[%clk 0:02:54.7]}
4. c5 {[%clk 0:02:59.7]} 4... Nd5 {[%clk 0:02:54.1]} 5. Nc3 {[%clk 0:02:58.2]}
5... e6 {[%clk 0:02:53.8]} 6. Nxd5 {[%clk 0:02:57.2]} 6... exd5 {[%clk
0:02:51.8]} 7. d4 {[%clk 0:02:57.3]} 7... b6 {[%clk 0:02:51.6]} 8. Nf3 {[%clk
0:02:53.2]} 8... bxc5 {[%clk 0:02:50]} 9. dxc5 {[%clk 0:02:52.3]} 9... c6 {[%clk
0:02:50.1]} 10. Qd4 {[%clk 0:02:51.1]} 10... Na6 {[%clk 0:02:46.4]} 11. b4
{[%clk 0:02:46.4]} 11... Nc7 {[%clk 0:02:46.3]} 12. Bg5 {[%clk 0:02:40.2]} 12...
Be7 {[%clk 0:02:43.2]} 13. Bxe7 {[%clk 0:02:37.1]} 13... Qxe7 {[%clk 0:02:43.1]}
14. Bd3 {[%clk 0:02:33.7]} 14... a5 {[%clk 0:02:42]} 15. a3 {[%clk 0:02:32.7]}
15... Rb8 {[%clk 0:02:28.8]} 16. O-O {[%clk 0:02:28]} 16... O-O {[%clk
0:02:26.1]} 17. Rfc1 {[%clk 0:02:24.3]} 17... Ne6 {[%clk 0:02:23]} 18. Qc3
{[%clk 0:02:23.7]} 18... axb4 {[%clk 0:02:21.1]} 19. axb4 {[%clk 0:02:21.9]}
19... Bb7 {[%clk 0:02:17.9]} 20. h4 {[%clk 0:02:19]} 20... Ra8 {[%clk
0:02:17.6]} 21. Nd4 {[%clk 0:02:13.9]} 21... Qxh4 {[%clk 0:02:10.7]} 22. Nf5
{[%clk 0:02:11.8]} 22... Qg5 {[%clk 0:02:08.4]} 23. Nd6 {[%clk 0:02:02.4]} 23...
Rxa1 {[%clk 0:02:06.2]} 24. Rxa1 {[%clk 0:02:01.1]} 24... Bc8 {[%clk 0:02:06.5]}
25. Bf1 {[%clk 0:01:51.6]} 25... Nf4 {[%clk 0:02:04.3]} 26. Ra8 {[%clk
0:01:48.5]} 26... Nh3+ {[%clk 0:01:49.4]} 27. Qxh3 {[%clk 0:01:45.5]} 1-0

[Event "Late-Titled-Tuesday-Blitz-February-13-2024"]
[Site "Chess.com"]
[Date "2024.02.13"]
[Round "5"]
[White "effefe"]
[Black "protectiago"]
[Result "1-0"]
[WhiteElo "2285"]
[BlackElo "2103"]
[TimeControl "180+1"]
[EndTime "14:52:17 PST"]
[Termination "effefe won by resignation"]

1. d4 {[%clk 0:03:00.9]} 1... Nf6 {[%clk 0:02:57.5]} 2. c4 {[%clk 0:02:57.6]}
2... g6 {[%clk 0:02:55.1]} 3. Nc3 {[%clk 0:02:50]} 3... d5 {[%clk 0:02:50.7]} 4.
cxd5 {[%clk 0:02:47.2]} 4... Nxd5 {[%clk 0:02:50.9]} 5. e4 {[%clk 0:02:47.6]}
5... Nxc3 {[%clk 0:02:50.4]} 6. bxc3 {[%clk 0:02:48.5]} 6... Bg7 {[%clk
0:02:50.8]} 7. Be3 {[%clk 0:02:45.1]} 7... c5 {[%clk 0:02:50.9]} 8. Qd2 {[%clk
0:02:44]} 8... Qa5 {[%clk 0:02:49.5]} 9. Nf3 {[%clk 0:02:40.9]} 9... Bg4 {[%clk
0:02:48]} 10. Be2 {[%clk 0:02:38.7]} 10... Bxf3 {[%clk 0:02:47.4]} 11. Bxf3
{[%clk 0:02:38.6]} 11... cxd4 {[%clk 0:02:47]} 12. cxd4 {[%clk 0:02:39.5]} 12...
Qxd2+ {[%clk 0:02:46.5]} 13. Kxd2 {[%clk 0:02:40.4]} 13... Nc6 {[%clk
0:02:46.7]} 14. e5 {[%clk 0:02:31.1]} 14... O-O-O {[%clk 0:02:22.5]} 15. Rhc1
{[%clk 0:02:25]} 15... Bxe5 {[%clk 0:02:19.1]} 16. Bxc6 {[%clk 0:02:22.6]} 16...
bxc6 {[%clk 0:02:19.1]} 17. Rxc6+ {[%clk 0:02:23.5]} 17... Kb7 {[%clk
0:02:13.8]} 18. Rc4 {[%clk 0:02:23.8]} 18... Rd7 {[%clk 0:02:07.4]} 19. Rb1+
{[%clk 0:02:22.2]} 19... Ka8 {[%clk 0:02:07.5]} 20. Ke2 {[%clk 0:02:18.5]} 20...
Bf6 {[%clk 0:01:59.3]} 21. Rcb4 {[%clk 0:02:11.6]} 21... Rhd8 {[%clk 0:01:55.7]}
22. Bf4 {[%clk 0:02:09.4]} 22... a6 {[%clk 0:01:36]} 23. Rb6 {[%clk 0:02:05.7]}
23... Ka7 {[%clk 0:01:31.2]} 24. Bb8+ {[%clk 0:02:01.1]} 1-0

[Event "Late-Titled-Tuesday-Blitz-February-13-2024"]
[Site "Chess.com"]
[Date "2024.02.13"]
[Round "5"]
[White "BabageldiAnnaberdiyev"]
[Black "emeli_chess"]
[Result "1/2-1/2"]
[WhiteElo "2633"]
[BlackElo "2383"]
[TimeControl "180+1"]
[EndTime "14:53:05 PST"]
[Termination "Game drawn by agreement"]

1. e4 {[%clk 0:03:00.9]} 1... e5 {[%clk 0:02:59.2]} 2. Nf3 {[%clk 0:03:00.1]}
2... Nc6 {[%clk 0:02:59.5]} 3. Bc4 {[%clk 0:02:58.9]} 3... Nf6 {[%clk 0:02:59]}
4. d4 {[%clk 0:02:58.9]} 4... exd4 {[%clk 0:02:58]} 5. O-O {[%clk 0:02:58.9]}
5... Nxe4 {[%clk 0:02:57.6]} 6. Re1 {[%clk 0:02:59.3]} 6... d5 {[%clk
0:02:57.4]} 7. Bxd5 {[%clk 0:03:00]} 7... Qxd5 {[%clk 0:02:57.4]} 8. Nc3 {[%clk
0:03:00.9]} 8... Qa5 {[%clk 0:02:57.4]} 9. Nxe4 {[%clk 0:03:00.1]} 9... Be6
{[%clk 0:02:56.1]} 10. Neg5 {[%clk 0:03:00.5]} 10... Bd6 {[%clk 0:02:49]} 11.
Nxe6 {[%clk 0:02:56.2]} 11... fxe6 {[%clk 0:02:48.9]} 12. Rxe6+ {[%clk
0:02:56.9]} 12... Kd7 {[%clk 0:02:48.7]} 13. Bd2 {[%clk 0:02:49.8]} 13... Qb5
{[%clk 0:02:37.6]} 14. Qe2 {[%clk 0:02:48.3]} 14... Qxe2 {[%clk 0:02:31.1]} 15.
Rxe2 {[%clk 0:02:49.2]} 15... Rae8 {[%clk 0:02:27.2]} 16. Rae1 {[%clk
0:02:49.5]} 16... h6 {[%clk 0:02:20.8]} 17. h4 {[%clk 0:02:48.4]} 17... Rxe2
{[%clk 0:02:16.2]} 18. Rxe2 {[%clk 0:02:49.3]} 18... Re8 {[%clk 0:02:16]} 19.
Kf1 {[%clk 0:02:49.8]} 19... Rxe2 {[%clk 0:02:13.7]} 20. Kxe2 {[%clk 0:02:50.7]}
20... Ke6 {[%clk 0:02:14]} 21. Kd3 {[%clk 0:02:49.7]} 21... Kd5 {[%clk
0:02:14.2]} 22. a3 {[%clk 0:02:42.8]} 22... Ne5+ {[%clk 0:02:04.6]} 23. Nxe5
{[%clk 0:02:42.2]} 23... Bxe5 {[%clk 0:02:04.9]} 24. f4 {[%clk 0:02:41.3]} 24...
Bf6 {[%clk 0:02:01.5]} 25. h5 {[%clk 0:02:41.8]} 25... c5 {[%clk 0:02:00.8]} 26.
b3 {[%clk 0:02:42.4]} 26... b5 {[%clk 0:02:00.3]} 27. g4 {[%clk 0:02:26.7]}
27... c4+ {[%clk 0:01:59.6]} 28. bxc4+ {[%clk 0:02:27.3]} 28... bxc4+ {[%clk
0:01:59.9]} 29. Ke2 {[%clk 0:02:28]} 29... Ke4 {[%clk 0:01:58.7]} 30. g5 {[%clk
0:02:27.5]} 30... d3+ {[%clk 0:01:54.3]} 31. cxd3+ {[%clk 0:02:27]} 31... cxd3+
{[%clk 0:01:54.1]} 32. Kd1 {[%clk 0:02:21.3]} 32... Bb2 {[%clk 0:01:41.1]} 33.
gxh6 {[%clk 0:02:20.5]} 33... gxh6 {[%clk 0:01:38.3]} 34. f5 {[%clk 0:02:18]}
34... Kxf5 {[%clk 0:01:31.7]} 35. Bxh6 {[%clk 0:02:16.9]} 35... Bxa3 {[%clk
0:01:30.2]} 36. Kd2 {[%clk 0:02:08.3]} 1/2-1/2